Cogmind - Beta 14 @@@ ROGUE MODE // 2024.09.13 @ 01:23:25 Player: J1ang-5h1 Result: Destroyed by S-27 Virus with Autogun Performance ------------- Evolutions (5) 2500 Regions Visited (12) 2400 Robots Destroyed (80) 400 Value Destroyed (2648) 2648 Prototype IDs (15) 300 Alien Tech Used (0) 0 Bonus (4203) 4203 TOTAL SCORE: 12451 Bonus ------- High Alert Combat Kills 1028 Follower Combat Kills 2158 Awakened Behemoth Slayer 1000 Registered with UFD 300 Met Imprinter 300 Friendly Fire -583 Cogmind --------- Core Integrity 0/1000 Matter 129/300 Energy 26/100 System Corruption 1% Temperature Cool (0) Movement Core (1350) Ox26 Location -5/Cetus Parts ------- > --- POWER (2) -------- (None) > --- PROPULSION (4) --- (None) > --- UTILITY (9) ------ Huge Storage Unit Visual Processing Unit Improved Sensor Array Targeting Computer Armor Integrity Analyzer Improved Hacking Suite > --- WEAPON (2) ------- (None) > --- INVENTORY (25) --- Improved Terrain Scanner Advanced ECM Suite Makeshift Cloaking Device EM Disruption Field Point Defense System System Restoration Module Bomb Factory No. 2 Storm Laser Companion Sword CR-A16's Behemoth Slayer Peak State ------------ > --- POWER ------------ Neutrino Core Compact Particle Reactor > --- PROPULSION ------- Improved Treads Improved Medium Treads Improved Medium Treads > --- UTILITY ---------- Advanced Cooling System Huge Storage Unit Improved Trap Scanner Visual Processing Unit Active Sensor Suite Remote Force Field Improved Hacking Suite > --- WEAPON ----------- Disruptor Cannon Magnetic Acceleration Cannon > --- INVENTORY -------- Light Antimatter Reactor Micro Antimatter Reactor Scrap Suit Improved Terrain Scanner Recoil Nullifier Improved Particle Charger Advanced ECM Suite Makeshift Cloaking Device Layered Medium Armor Plating Layered Medium Armor Plating EM Disruption Field Point Defense System System Restoration Module High-powered Tractor Beam Bomb Factory No. 2 Storm Laser Gauss Cannon Improved Grenade Launcher Companion Sword CR-A16's Behemoth Slayer [Rating: 103] Favorites ----------- Power Fission Core Engine Deuterium Engine Power Core Fission Core Reactor Light Antimatter Reactor Propulsion Advanced Treads Treads Advanced Treads Leg Aluminum Leg Wheel Wheel Utility Huge Storage Unit Device Active Sensor Suite Storage Huge Storage Unit Processor Visual Processing Unit Hackware Improved Hacking Suite Protection Light Armor Plating Weapon Heavy Assault Rifle Energy Gun Heavy Laser Energy Cannon Disruptor Cannon Ballistic Gun Heavy Assault Rifle Ballistic Cannon Magnetic Acceleration Cannon Launcher Improved Proton Missile Launcher Impact Weapon Flail Slashing Weapon Companion Sword Piercing Weapon CR-A16's Behemoth Slayer Special Melee Weapon Datajack Build | -11 -10 -10 -9 -9 -6 -6 -6 -6 -5 -5 -5 -5 ------- Run | Yrd Mat Sub Rec Scr Fac Low Low Zio Pro Fac Ext Cet Slots Evolved 10 | . . . . . 8 . . . . 2 . . Power 1 | . . . . . 1 . . . . . . . Propulsion 2 | . . . . . 2 . . . . . . . Utility 7 | . . . . . 5 . . . . 2 . . Weapon . | . . . . . . . . . . . . . Parts Attached 142 | 2 17 7 7 6 7 6 6 6 4 9 40 25 Power 19 | . 3 . . 2 1 1 . . 1 . 8 3 Engine 11 | . 3 . . 2 . . . . 1 . 4 1 Core 3 | . . . . . 1 . . . . . 1 1 Reactor 5 | . . . . . . 1 . . . . 3 1 Propulsion 30 | . 4 2 2 4 2 . . . . 1 11 4 Treads 23 | . 2 . 2 4 2 . . . . 1 11 1 Leg 5 | . . 2 . . . . . . . . . 3 Wheel 2 | . 2 . . . . . . . . . . . Hover . | . . . . . . . . . . . . . Flight . | . . . . . . . . . . . . . Utility 40 | 1 4 2 . . 3 2 1 4 1 5 5 12 Device 26 | 1 1 1 . . 2 2 1 4 1 2 5 6 Storage 1 | . 1 . . . . . . . . . . . Processor 4 | . 1 . . . 1 . . . . . . 2 Hackware 3 | . . . . . . . . . . 3 . . Protection 6 | . 1 1 . . . . . . . . . 4 Artifact . | . . . . . . . . . . . . . Weapon 53 | 1 6 3 5 . 1 3 5 2 2 3 16 6 Energy Gun 2 | . . . . . . . . . . . . 2 Energy Cannon 5 | . . . . . . . . . . 1 3 1 Ballistic Gun 19 | 1 5 1 3 . . 2 3 2 1 1 . . Ballistic Cannon 8 | . . . . . . . 1 . . 1 5 1 Launcher 7 | . 1 . . . . . . . . . 5 1 Special Weapon . | . . . . . . . . . . . . . Impact Weapon 3 | . . 2 1 . . . . . . . . . Slashing Weapon 6 | . . . . . 1 1 1 . . . 2 1 Piercing Weapon 2 | . . . . . . . . . 1 . 1 . Special Melee Weapon 1 | . . . 1 . . . . . . . . . Unidentified Prototypes 4 | . . . . . 1 . . 1 . . 1 1 Parts Lost 45 | . 3 1 . . . . . . 1 1 9 30 Power 10 | . 2 1 . . . . . . . . 2 5 Propulsion 12 | . 1 . . . . . . . . . 4 7 Utility 16 | . . . . . . . . . 1 1 2 12 Weapon 7 | . . . . . . . . . . . 1 6 Highest Loss Streak 23 | . 2 1 . . . . . . 1 1 4 23 To Critical Strikes 4 | . . . . . . . . . 1 . 1 2 Average Slot Usage (%) 87 | . 98 95 83 99 65 85 86 81 85 86 87 65 Engine 5 | . 13 10 . 13 6 3 . . 4 5 4 3 Core 2 | . . . . . 2 6 6 6 6 5 1 . Reactor 2 | . . . . . . 2 6 6 1 . 3 . Treads 22 | . 24 . 9 28 17 26 26 26 26 23 22 1 Leg 2 | . . 18 17 . . . . . . . . 7 Device 11 | . 6 9 . . 9 14 20 19 19 17 17 14 Storage 8 | . 14 14 14 14 6 6 6 6 6 5 5 5 Processor 4 | . 6 . . . 1 6 6 6 6 5 5 13 Hackware 1 | . . . . . . . . . . 8 10 5 Protection 4 | . . 4 14 14 6 4 . . . . . 1 Ballistic Gun 15 | . 27 17 25 28 12 12 12 8 12 7 . . Peak Build Rating 103 | 7 12 12 13 24 73 82 84 87 88 96 103 102 Average Rating 54 | 6 9 11 11 20 56 71 82 80 80 89 98 55 On Entrance 51 | 6 7 12 11 13 24 73 82 84 84 79 93 102 Naked Turns . | . . . . . . . . . . . . . Heaviest Build 145 | 13 94 94 89 98 116 121 129 129 128 134 140 145 Greatest Support 106 | 20 40 20 46 53 88 88 88 88 88 96 106 83 Greatest Overweight (x) 34 | . 9 4 29 2 2 1 1 1 1 1 2 34 Average Overweight (x) 1 | . 2 4 2 1 1 1 1 1 1 1 1 3 Largest Inventory Capacity 25 | 8 25 25 25 25 25 25 25 25 25 25 25 25 Average Capacity 24 | 8 24 25 25 25 25 25 25 25 25 25 25 25 Most Carried 25 | 8 25 25 25 25 25 25 25 25 25 25 25 25 Average Carried 23 | 6 19 24 24 24 23 24 24 24 24 24 24 15 Final Capacity 25 | 8 25 25 25 25 25 25 25 25 25 25 25 25 Final Carried 25 | 7 24 25 25 25 25 25 25 25 24 24 25 14 Class Distribution -------------------- 28% | Skirmisher 26% | Mutant 20% | Commander-Mutant 11% | Scavenger-Skirmisher 6% | Hacker-Skirmisher Dominant Class ---------------- Mutant | -10/Materials Mutant | -10/Subcaves Mutant | -9/Recycling Commander-Mutant | -9/Scraptown Commander-Skirmisher | -6/Factory Skirmisher | -6/Lower Caves Skirmisher | -6/Lower Caves Skirmisher | -6/Zion Scavenger-Skirmisher | -5/Proximity Caves Hacker-Skirmisher | -5/Factory Scavenger-Skirmisher | -5/Extension Scavenger-Mutant | -5/Cetus Resources | -11 -10 -10 -9 -9 -6 -6 -6 -6 -5 -5 -5 -5 ----------- Run | Yrd Mat Sub Rec Scr Fac Low Low Zio Pro Fac Ext Cet Matter Collected 3114 | 278 598 71 198 60 72 140 175 60 72 7 1197 186 Remotely 154 | . . . . . . . . . . . . 154 Salvage Created 3701 | 218 681 99 222 . . 90 145 . 115 32 1985 114 Parts 165 | 15 37 9 9 . . 5 5 . 5 4 68 8 Haulers Intercepted 2 | . 2 . . . . . . . . . . . Recyclers Shooed 5 | . 2 . 1 . . . . . . 1 1 . Parts Field Recycled . | . . . . . . . . . . . . . Retrieved Matter . | . . . . . . . . . . . . . Parts Self-Destructed 40 | . . 12 . . . 18 5 . 5 . . . Prevented . | . . . . . . . . . . . . . Kills | -11 -10 -10 -9 -9 -6 -6 -6 -6 -5 -5 -5 -5 ------- Run | Yrd Mat Sub Rec Scr Fac Low Low Zio Pro Fac Ext Cet Combat Hostiles Destroyed 58 | . 16 5 1 . . 1 2 . 2 2 24 5 Melee 3 | . . 1 . . . . . . . . . 2 Guns 24 | . 13 4 1 . . 1 2 . 1 2 . . Cannons 8 | . . . . . . . . . . . 7 1 AOE 15 | . 3 . . . . . . . . . 10 2 Classes Destroyed 15 | 2 4 1 1 . . 1 1 . 1 1 3 . Worker 2 | . . . . . . . . . . . 2 . Builder 2 | . . . . . . . . . . 1 1 . Tunneler 6 | 5 1 . . . . . . . . . . . Hauler 2 | . 2 . . . . . . . . . . . Recycler 7 | 1 1 . 1 . . . . . . . 4 . Watcher 2 | . 1 . . . . . . . . . . 1 Swarmer 17 | . 6 4 . . . 1 . . . 2 4 . Saboteur 1 | . . . . . . . . . . . 1 . Grunt 26 | . 10 . . . . . . . 1 . 12 3 Brawler 3 | . . . . . . . 1 . . . 2 . Duelist 3 | . . . . . . . . . . . 3 . Sentry 4 | . . . 1 . . . 1 . . . 2 . Behemoth 1 | . . . . . . . . . 1 . . . Cetus Guard 2 | . . . . . . . . . . . . 2 Subdweller 1 | . . 1 . . . . . . . . . . Ranger 1 | . . . . . . 1 . . . . . . Best Kill Streak 5 | 3 3 4 1 . . 1 1 . 1 2 5 3 Combat Bots Only 5 | . 3 4 1 . . 1 1 . 1 2 5 3 Max Kills in Single Turn 3 | 1 3 1 1 . . 1 1 . 1 1 1 2 Gunslinging . | . . . . . . . . . . . . . Exploded 3 | . 3 . . . . . . . . . 1 2 Melee 1 | . . 1 . . . . . . . . . 1 Uniques/NPCs Destroyed . | . . . . . . . . . . . . . Combat | -11 -10 -10 -9 -9 -6 -6 -6 -6 -5 -5 -5 -5 -------- Run | Yrd Mat Sub Rec Scr Fac Low Low Zio Pro Fac Ext Cet Hostile Shots Fired 595 | . 82 26 4 . 2 12 21 . 13 31 168 236 Missed 156 | . 18 6 1 . 1 3 4 . 2 8 50 63 Damage Taken 7446 | . 748 275 46 . 40 100 82 . 225 322 1842 3766 Core 1241 | . 111 80 17 . . 9 6 . 18 22 210 768 Absorbed by Shields 1083 | . . . . . . 40 91 . 125 121 566 140 Redirected to Shielding 45 | . . . . . . . . . . . . 45 Regen/Repaired (Parts) 98 | . 98 . . . . . . . . . . . Core Remaining (%) 70 | 100 . . . 16 . . . . 96 . . . Volleys Fired 305 | 29 82 7 11 . 2 5 10 . 12 15 104 28 Largest 2 | 2 2 2 2 . 2 2 2 . 2 2 2 2 Hottest 149 | 40 46 46 46 . 46 46 66 . 57 134 134 149 Shots Fired 546 | 58 163 13 22 . 4 10 19 . 24 21 165 47 Gun 334 | 58 162 13 22 . 4 10 18 . 24 10 . 13 Cannon 176 | . . . . . . . 1 . . 11 136 28 Launcher 36 | . 1 . . . . . . . . . 29 6 Special . | . . . . . . . . . . . . . Kinetic 424 | 58 162 13 22 . 4 10 19 . 24 17 71 24 Thermal 13 | . . . . . . . . . . . . 13 Explosive 9 | . 1 . . . . . . . . . 2 6 Electromagnetic 100 | . . . . . . . . . . 4 92 4 Robot Hit Streak 12 | 5 12 3 9 . 1 5 4 . 2 3 9 8 Robot Miss Streak 11 | 6 6 2 1 . 2 3 2 . 11 3 5 3 Penetration Max . | . . . . . . . . . . . . . Secondary Targets 4 | . 2 1 . . . 1 . . . . . . Max Gunslinging Chain 1 | . 1 1 . . . 1 . . . . . . Shots Hit Robots 367 | 28 103 12 29 . 1 12 12 . 10 15 111 34 Core Hits 205 | 11 44 5 8 . 1 3 4 . 3 9 86 31 Critical Kills 1 | . . . . . . . 1 . . . . . Critical Parts Destroyed 5 | . 1 1 . . . . 3 . . . . . Critical Strikes 23 | . 1 1 . . . . 6 . . 1 11 3 Destroy 7 | . 1 . . . . . 6 . . . . . Blast 14 | . . . . . . . . . . 1 10 3 Corrupt 1 | . . . . . . . . . . . 1 . Smash 1 | . . 1 . . . . . . . . . . Melee Attacks 67 | . . 22 18 . . 5 3 . 3 . 11 5 Impact 24 | . . 22 2 . . . . . . . . . Slashing 23 | . . . . . . 5 3 . . . 10 5 Piercing 4 | . . . . . . . . . 3 . 1 . Sneak Attacks 28 | . . . 16 . . 5 . . . . 7 . Combat Hostiles 10 | . . . 10 . . . . . . . . . Follow-up Attacks 2 | . . 2 . . . . . . . . . . Damage Inflicted 9955 | 249 1265 315 229 . 23 476 79 . 111 359 5228 1621 Guns 2306 | 249 1145 91 229 . 23 122 79 . 76 155 . 137 Cannons 3136 | . . . . . . . . . . 204 2226 706 Explosions 3169 | . 120 . . . . . . . . . 2416 633 Melee 1344 | . . 224 . . . 354 . . 35 . 586 145 Ramming . | . . . . . . . . . . . . . Kinetic 4503 | 249 1145 91 229 . 23 122 79 . 76 304 1561 624 Thermal 186 | . . . . . . . . . . . 49 137 Explosive 1114 | . 120 . . . . . . . . . 361 633 Electromagnetic 2808 | . . . . . . . . . . 55 2671 82 Impact 224 | . . 224 . . . . . . . . . . Slashing 1085 | . . . . . . 354 . . . . 586 145 Piercing 35 | . . . . . . . . . 35 . . . Highest Corruption 1 | . . . . . 1 1 1 1 . . 1 1 Average Corruption 1 | . . . . . 1 1 1 1 . . 1 1 Corruption Purged . | . . . . . . . . . . . . . Corruption Blocked . | . . . . . . . . . . . . . Effects 37 | . . . . . 4 15 11 . . . 5 2 Message Errors 10 | . . . . . 2 6 2 . . . . . Matter Fused 9 | . . . . . . 5 3 . . . . 1 Heat Flow Errors 6 | . . . . . . 1 4 . . . 1 . Energy Discharges 6 | . . . . . 2 1 . . . . 3 . Data Loss (minor) 5 | . . . . . . 1 2 . . . 1 1 Data Loss (major) 1 | . . . . . . 1 . . . . . . Overload Shots . | . . . . . . . . . . . . . Overflow Damage 348 | . 3 34 . . . 112 . . . 4 169 26 Projectiles 30 | . . . . . . . . . . 4 . 26 Explosions 9 | . 3 . . . . . . . . . 6 . Melee 309 | . . 34 . . . 112 . . . . 163 . Knockbacks 14 | . . . . . . . . . . 2 12 . Impact . | . . . . . . . . . . . . . Kinetic 12 | . . . . . . . . . . 2 10 . Secondary 2 | . . . . . . . . . . . 2 . Self-Inflicted Damage 40 | . . . . . . . . . . . 40 . Shots 3 | . . . . . . . . . . . 3 . Rammed . | . . . . . . . . . . . . . Targets Rammed . | . . . . . . . . . . . . . Kicked . | . . . . . . . . . . . . . Crushed . | . . . . . . . . . . . . . Highest Temperature 335 | . 25 . 2 . . 131 271 . . 228 335 192 Average Temperature 74 | . 7 . 2 . . 66 71 . . 110 111 67 Received Heat Transfer 1686 | . 381 18 18 . . . 8 . 30 96 404 731 Effects 5 | . . . . . . . . . . . 5 . Energy Bleed 1 | . . . . . . . . . . . 1 . Interference 4 | . . . . . . . . . . . 4 . Siege Activations . | . . . . . . . . . . . . . Robots Corrupted 8 | . . . . . . . . . . . 8 . Combat Hostiles 7 | . . . . . . . . . . . 7 . Parts Fried 13 | . . . . . . . . . . . 12 1 Impact Corruptions 1 | . . 1 . . . . . . . . . . Robots Melted . | . . . . . . . . . . . . . Combat Hostiles . | . . . . . . . . . . . . . Parts Melted 1 | . . . . . . . 1 . . . . . Heat Transferred 272 | . . . . . . . . . . . 50 222 Parts Sabotaged . | . . . . . . . . . . . . . Parts Stolen . | . . . . . . . . . . . . . Parts Stripped . | . . . . . . . . . . . . . Power Chain Reactions 2 | . . . . . . . . . . . 2 . Alert | -11 -10 -10 -9 -9 -6 -6 -6 -6 -5 -5 -5 -5 ------- Run | Yrd Mat Sub Rec Scr Fac Low Low Zio Pro Fac Ext Cet Peak Influence 1977 | 30 227 . 65 . 82 . . . . 1087 1977 1221 Initial 1106 | . 19 . 7 . . . . . . 900 480 1106 Average 459 | 15 118 . 34 . 33 . . . . 892 899 1021 Maximum Alert Level 5 | . 1 . . . . . . . . 4 5 4 Low Security (%) 51 | 100 87 . 100 . 100 . . . . . 1 . Level 1 5 | . 12 . . . . . . . . . 7 . Level 2 12 | . . . . . . . . . . . 42 . Level 3 16 | . . . . . . . . . . 99 16 67 Level 4 9 | . . . . . . . . . . . 19 32 Level 5 3 | . . . . . . . . . . . 13 . High Security . | . . . . . . . . . . . . . Max Security . | . . . . . . . . . . . . . Squads Dispatched 19 | . 3 . . . 1 . . . . 2 12 1 Investigation 6 | . 2 . . . . . . . . . 3 1 Extermination 1 | . . . . . 1 . . . . . . . Reinforcement 5 | . 1 . . . . . . . . 1 3 . Assault 6 | . . . . . . . . . . . 6 . Garrison 1 | . . . . . . . . . . 1 . . Intercept . | . . . . . . . . . . . . . Searches Triggered 2 | . . . . . . . . . . 1 1 . Construction Impeded 2 | . . . . . . . . . . . 2 . Haulers Reinforced . | . . . . . . . . . . . . . Active Scanning Responses 2 | . . . . . . . . . . . 1 1 Cargo Convoy Interrupts . | . . . . . . . . . . . . . Stealth | -11 -10 -10 -9 -9 -6 -6 -6 -6 -5 -5 -5 -5 --------- Run | Yrd Mat Sub Rec Scr Fac Low Low Zio Pro Fac Ext Cet Distress Signals 10 | . . . . . . . . . 1 1 7 1 Communications Jammed . | . . . . . . . . . . . . . Distress Signals . | . . . . . . . . . . . . . Times Spotted 181 | . 32 8 1 . 2 6 3 . 9 12 93 15 Peak Tracking Total 9 | . 4 3 1 . 1 3 3 . 3 6 9 7 Tactical Retreats 13 | . . 3 . . . . . . . 1 9 . Traps | -11 -10 -10 -9 -9 -6 -6 -6 -6 -5 -5 -5 -5 ------- Run | Yrd Mat Sub Rec Scr Fac Low Low Zio Pro Fac Ext Cet Traps Triggered 3 | . . . . . . . . . . . 3 . Indirectly 3 | . . . . . . . . . . . 3 . Trap Hack Attempts . | . . . . . . . . . . . . . Triggered . | . . . . . . . . . . . . . Disarmed . | . . . . . . . . . . . . . Reprogrammed . | . . . . . . . . . . . . . Reused . | . . . . . . . . . . . . . Traps Extracted . | . . . . . . . . . . . . . Installed . | . . . . . . . . . . . . . Triggered 2 | . . . . . . . 2 . . . . . Machines | -11 -10 -10 -9 -9 -6 -6 -6 -6 -5 -5 -5 -5 ---------- Run | Yrd Mat Sub Rec Scr Fac Low Low Zio Pro Fac Ext Cet Machines Disabled 8 | . . . . . . . . . . 6 2 . Max in Single Turn 1 | . . . . . . . . . . . 1 . Machines Repaired . | . . . . . . . . . . . . . Machines Dismantled . | . . . . . . . . . . . . . Machines Sabotaged . | . . . . . . . . . . . . . Overloaded Fab Kills . | . . . . . . . . . . . . . Hacking | -11 -10 -10 -9 -9 -6 -6 -6 -6 -5 -5 -5 -5 --------- Run | Yrd Mat Sub Rec Scr Fac Low Low Zio Pro Fac Ext Cet Machines Accessed 40 | . 10 . 10 5 1 1 . 1 . 1 9 2 Terminals 26 | . 7 . 6 . 1 . . . . 1 9 2 Fabricators . | . . . . . . . . . . . . . Repair Stations 1 | . 1 . . . . . . . . . . . Recycling Units 6 | . 2 . 4 . . . . . . . . . Scanalyzers . | . . . . . . . . . . . . . Garrison Access . | . . . . . . . . . . . . . Total Hacks 128 | . 30 . 31 36 2 1 . 1 . 1 23 3 Successful 91 | . 22 . 20 36 1 1 . 1 . 1 7 2 Failed 36 | . 7 . 11 . 1 . . . . . 16 1 Catastrophic 5 | . . . . . . . . . . . 5 . Database Lockouts 1 | . 1 . . . . . . . . . . . Manual 54 | . 22 . 19 . 2 . . . . . 8 3 Terminals 72 | . 22 . 21 . 2 . . . . 1 23 3 Fabricators . | . . . . . . . . . . . . . Repair Stations 4 | . 4 . . . . . . . . . . . Recycling Units 14 | . 4 . 10 . . . . . . . . . Scanalyzers . | . . . . . . . . . . . . . Garrison Access . | . . . . . . . . . . . . . Terminal Hacks 57 | . 7 . 5 36 . 1 . 1 . 1 4 2 Record 29 | . . . . 28 . . . . . . . 1 Part Schematic 1 | . . . . . . . . 1 . . . . Robot Analysis 11 | . 2 . 2 7 . . . . . . . . Prototype ID Bank 1 | . . . 1 . . . . . . . . . Open Door 8 | . . . . 1 . 1 . . . 1 4 1 Terminal Index 1 | . . . 1 . . . . . . . . . Scanalyzer Index 1 | . 1 . . . . . . . . . . . Locate Traps 2 | . 2 . . . . . . . . . . . Hauler Manifests 2 | . 1 . 1 . . . . . . . . . Zone Layout 1 | . 1 . . . . . . . . . . . Fabricator Hacks . | . . . . . . . . . . . . . Repair Station Hacks 4 | . 4 . . . . . . . . . . . Scan Component 2 | . 2 . . . . . . . . . . . Repair 2 | . 2 . . . . . . . . . . . Recycling Unit Hacks 7 | . 2 . 5 . . . . . . . . . Report Inventory 6 | . 2 . 4 . . . . . . . . . Retrieve Components 1 | . . . 1 . . . . . . . . . Scanalyzer . | . . . . . . . . . . . . . Garrison Access Hacks . | . . . . . . . . . . . . . Unauthorized Hacks 23 | . 9 . 10 . 1 . . . . . 3 . Terminals 17 | . 7 . 6 . 1 . . . . . 3 . Botnet 6 | . 2 . 2 . 1 . . . . . 1 . Disrupt 1 | . . . . . . . . . . . 1 . Skim 10 | . 5 . 4 . . . . . . . 1 . Fabricators . | . . . . . . . . . . . . . Repair Stations . | . . . . . . . . . . . . . Recycling Units 6 | . 2 . 4 . . . . . . . . . Mask 1 | . . . 1 . . . . . . . . . Tunnel 5 | . 2 . 3 . . . . . . . . . Scanalyzers . | . . . . . . . . . . . . . Garrison Access . | . . . . . . . . . . . . . Data Cores Recovered . | . . . . . . . . . . . . . Used . | . . . . . . . . . . . . . Hacking Detections 24 | . 8 . 7 . 1 . . . . . 5 3 Full Trace Events 1 | . . . . . . . . . . . 1 . Feedback Events . | . . . . . . . . . . . . . Feedback Blocked . | . . . . . . . . . . . . . Robot Schematics Acquired . | . . . . . . . . . . . . . Robots Built . | . . . . . . . . . . . . . Authchips . | . . . . . . . . . . . . . Time . | . . . . . . . . . . . . . Total Robot Build Rating . | . . . . . . . . . . . . . Part Schematics Acquired 1 | . . . . . . . . 1 . . . . Parts Built . | . . . . . . . . . . . . . Authchips . | . . . . . . . . . . . . . Time . | . . . . . . . . . . . . . Total Part Build Rating . | . . . . . . . . . . . . . Parts Repaired 2 | . 2 . . . . . . . . . . . Time 64 | . 64 . . . . . . . . . . . Parts Recycled . | . . . . . . . . . . . . . Recycled Matter . | . . . . . . . . . . . . . Retrieved Matter . | . . . . . . . . . . . . . Retrieved Components 1 | . . . 1 . . . . . . . . . Parts Scanalyzed . | . . . . . . . . . . . . . Part Schematics Acquired . | . . . . . . . . . . . . . Parts Damaged . | . . . . . . . . . . . . . Bothacking | -11 -10 -10 -9 -9 -6 -6 -6 -6 -5 -5 -5 -5 ------------ Run | Yrd Mat Sub Rec Scr Fac Low Low Zio Pro Fac Ext Cet Used RIF Installer . | . . . . . . . . . . . . . Robots Hacked . | . . . . . . . . . . . . . Non-combat . | . . . . . . . . . . . . . Combat . | . . . . . . . . . . . . . Robot Hacks Applied . | . . . . . . . . . . . . . Relay Couplers Released . | . . . . . . . . . . . . . Fabnet Peak Effective % . | . . . . . . . . . . . . . Robots Rewired 26 | . . . 11 . . . . . . . 15 . Allies Hacked 4 | . . . . . . . . . . . 4 . Hacks Repelled . | . . . . . . . . . . . . . Allies | -11 -10 -10 -9 -9 -6 -6 -6 -6 -5 -5 -5 -5 -------- Run | Yrd Mat Sub Rec Scr Fac Low Low Zio Pro Fac Ext Cet Total Allies 34 | . . . 11 . . . . 1 . . 22 . Largest Group 11 | . . . 11 11 11 2 1 1 1 1 7 2 Highest-Rated Group 346 | . . . 131 134 134 55 21 74 74 69 346 58 Highest-Rated Ally 159 | . . . 34 34 34 34 21 74 74 69 159 39 Total Orders 10 | . . . . 10 . . . . . . . . FOLLOW 4 | . . . . 4 . . . . . . . . COLLECT 6 | . . . . 6 . . . . . . . . Ally Attacks 362 | . . . . . 8 7 4 . 20 15 308 . Total Damage 8501 | . . . . . 222 144 93 . 263 523 7256 . Kills 74 | . . . . . 3 2 1 . 2 8 58 . Allies Corrupted 1 | . . . . . . . . . . . 1 . Allies Melted . | . . . . . . . . . . . . . Intel | -11 -10 -10 -9 -9 -6 -6 -6 -6 -5 -5 -5 -5 ------- Run | Yrd Mat Sub Rec Scr Fac Low Low Zio Pro Fac Ext Cet Robot Analysis Total 11 | . 2 . 2 7 . . . . . . . . Derelict Logs Recovered 4 | . . 1 . 2 . 1 . . . . . . Drone Launches . | . . . . . . . . . . . . . Drone Recoveries . | . . . . . . . . . . . . . Exploration | -11 -10 -10 -9 -9 -6 -6 -6 -6 -5 -5 -5 -5 ------------- Run | Yrd Mat Sub Rec Scr Fac Low Low Zio Pro Fac Ext Cet Turns Passed 23479 | 189 2233 954 1430 4550 795 2549 1793 4129 992 476 2592 797 Spaces Moved 8872 | 90 661 349 402 1733 282 1102 770 1814 419 188 878 184 Core 8 | . . . 4 . . . . . . . . 4 Treads 7917 | . 524 . 190 1733 282 1102 770 1814 419 188 878 17 Legs 623 | 90 16 146 208 . . . . . . . . 163 Wheels 324 | . 121 203 . . . . . . . . . . Hover . | . . . . . . . . . . . . . Flight . | . . . . . . . . . . . . . Fastest Speed 120 | 120 120 140 240 232 225 225 225 225 225 225 228 240 Average Speed 246 | 120 282 248 336 260 273 225 225 225 225 226 235 363 Slowest Speed 1750 | 120 320 400 1500 320 305 225 225 225 225 228 312 1750 Overloaded Moves . | . . . . . . . . . . . . . Propulsion Burnouts . | . . . . . . . . . . . . . Robots Hopped . | . . . . . . . . . . . . . Cave-ins Triggered . | . . . . . . . . . . . . . Exploration Rate (%) 59 | 4 95 18 75 93 8 97 77 85 66 7 81 71 Regions Visited 12 Branch Regions 9 Pre-discovered Areas 12 | . 4 . 3 2 . 1 . 2 . . . . Known Exits Taken 8 | . 1 . . . 1 1 1 1 1 1 1 . Unknown Exits Taken 4 | 1 . 1 1 1 . . . . . . . . Scrap Searched 14 | . . . . 3 . 4 5 2 . . . . Spaces Dug 12 | . . 4 2 . . . 4 . . . 2 . Terrain Destroyed 91 | . 4 4 2 . . . 4 . . 1 39 37 Melee 11 | . . 4 2 . . . 3 . . . 2 . Projectile 20 | . . . . . . . 1 . . 1 16 2 AOE 60 | . 4 . . . . . . . . . 21 35 Terrain Rammed . | . . . . . . . . . . . . . Walls Destroyed . | . . . . . . . . . . . . . Machines Disabled . | . . . . . . . . . . . . . Actions | -11 -10 -10 -9 -9 -6 -6 -6 -6 -5 -5 -5 -5 --------- Run | Yrd Mat Sub Rec Scr Fac Low Low Zio Pro Fac Ext Cet Total 9899 | 124 889 391 447 1772 303 1157 805 1874 439 217 1216 265 Wait 186 | . 86 6 3 . . 23 15 15 1 . 26 11 Move 8860 | 89 660 348 401 1732 281 1101 769 1813 418 187 877 184 Hop . | . . . . . . . . . . . . . Pick Up 110 | 3 33 2 1 14 9 7 1 16 . 4 8 12 Fast Attach 17 | . . . 2 2 1 1 . 3 1 . 7 . Attach 47 | 1 7 . . . 5 1 . 2 1 3 5 22 Detach 2 | . . . . . . . . 1 . . 1 . Swap 78 | 1 10 7 5 4 1 4 6 1 2 6 28 3 Drop 93 | 1 11 1 3 20 4 9 1 23 1 2 17 . Fire 305 | 29 82 7 11 . 2 5 10 . 12 15 104 28 Melee 64 | . . 20 18 . . 5 3 . 3 . 10 5 Ram . | . . . . . . . . . . . . . Kick . | . . . . . . . . . . . . . Crush . | . . . . . . . . . . . . . Escape Stasis . | . . . . . . . . . . . . . Rewire 136 | . . . 3 . . . . . . . 133 . Trap . | . . . . . . . . . . . . . Miscellaneous 1 | . . . . . . 1 . . . . . . Route ------- -11/Scrapyard -10/Materials (discovered 5 exits: [*Mat x3] / [*Min] / *Sub) -10/Subcaves (discovered 3 exits: Mat x2 / *Rec) -9/Recycling (discovered 2 exits: [*Fac] / *Scr) -9/Scraptown (discovered 2 exits: *Fac x2) -6/Factory -6/Lower Caves -6/Lower Caves (discovered 2 exits: *Fac / *Zio) -6/Zion -5/Proximity Caves -5/Factory -5/Extension (discovered 3 exits: [*Fac x2] / *Cet) -5/Cetus (discovered 1 exit: [*Arc]) History --------- Turn | Location | Event 16 | -11/Scrapyard | Discovered new exit (range 3) 190 | -11/Scrapyard | Entered Materials 300 | -10/Materials | Build established: Mutant 775 | -10/Materials | Discovered new exit (range 14) 797 | -10/Materials | Central database locked down 1093 | -10/Materials | Discovered new exit (range 3) 1541 | -10/Materials | Discovered new exit (range 6) 1869 | -10/Materials | Discovered new exit (range 16) 1996 | -10/Materials | Loaded intel: 46 machine locations 2025 | -10/Materials | Loaded intel: 9 trap records 2043 | -10/Materials | Learned 4 Recycling zone layouts 2097 | -10/Materials | Identified exit to Subcaves 2247 | -10/Materials | Repaired Hvy. Assault Rifle 2280 | -10/Materials | Repaired Hvy. Assault Rifle 2423 | -10/Materials | Entered Subcaves 2424 | -10/Subcaves | Identified exit to Materials 2609 | -10/Subcaves | Core integrity fell below 50% 2704 | -10/Subcaves | Shifting Twisted Machinery released Sub. Power Source 2717 | -10/Subcaves | Shifting Twisted Machinery released Sub. Beam Cannon 2774 | -10/Subcaves | A swath of the cavern ceiling suddenly collapsed 3371 | -10/Subcaves | Discovered new exit (range 3) 3377 | -10/Subcaves | Entered Recycling 3856 | -9/Recycling | Core integrity fell below 20% 4233 | -9/Recycling | Discovered new exit (range 16) 4714 | -9/Recycling | Scanned before Scraplab entrance 4750 | -9/Recycling | Entered Scraplab 4769 | -9/Recycling | Discovered new exit (range 4) 4807 | -9/Recycling | Entered Scraptown 4807 | -9/Scraptown | Accompanied by 11 allies 4849 | -9/Scraptown | Build established: Commander-Mutant 4920 | -9/Scraptown | Heard Great Nut preacher, LISTEN AND RECITE! 5154 | -9/Scraptown | Visited UFD Registry 5154 | -9/Scraptown | Registered with UFD as "Flexishell" 5214 | -9/Scraptown | Visited Spacefarers 5339 | -9/Scraptown | Visited Shadow of the Wyrm 5380 | -9/Scraptown | Visited Junk Repository 5411 | -9/Scraptown | Visited Red Mages 5502 | -9/Scraptown | Visited Assassins FH 5536 | -9/Scraptown | Visited Cyclists 5584 | -9/Scraptown | Entered Cyclist Reading Room 5649 | -9/Scraptown | Visited Fellowship of the Rings 5850 | -9/Scraptown | Scanned Subdweller tech in exchange for log data 5857 | -9/Scraptown | Learned location of Quarantine (-2) 5860 | -9/Scraptown | Learned location of 1 exit from Lower Caves 5952 | -9/Scraptown | Guru changed UFD alias to "Fissiongrid" 6022 | -9/Scraptown | Discovered new exit (range 9) 7167 | -9/Scraptown | Visited Science Testing Area 7222 | -9/Scraptown | Visited Junk Repository 7327 | -9/Scraptown | Visited Botcube Research 7445 | -9/Scraptown | Visited Analyses Database 7503 | -9/Scraptown | Visited Derelict Rescue Squad 7620 | -9/Scraptown | Visited Supply Room 7732 | -9/Scraptown | Visited Infowarlord's Domain 7971 | -9/Scraptown | Found Active Sensor Suite 8390 | -9/Scraptown | Visited Curators Association 8549 | -9/Scraptown | Visited Sword Containment 9338 | -9/Scraptown | Discovered new exit (range 3) 9357 | -9/Scraptown | Entered Factory 9357 | -6/Factory | Accompanied by 11 allies 9357 | -6/Factory | Evolved 8 slots: Power x1, Propulsion x2, Utility x5 9663 | -6/Factory | Build established: Commander-Skirmisher 9876 | -6/Factory | P-60 Hacker assimilated allied Transporter 2a 9881 | -6/Factory | P-60 Hacker assimilated allied Bruiser 2b 9902 | -6/Factory | Found Botcube 9904 | -6/Factory | Lost 7 allies 9909 | -6/Factory | Found DRS Beacon 9913 | -6/Factory | Found Scrap Suit 9924 | -6/Factory | Found Scrap Suit 10026 | -6/Factory | Discovered new exit (range 11) 10140 | -6/Factory | Identified exit to Lower Caves 10152 | -6/Factory | Entered Lower Caves 10152 | -6/Lower Caves | Accompanied by 2 allies 10153 | -6/Lower Caves | Identified exit to Lower Caves 10175 | -6/Lower Caves | Build established: Skirmisher 10198 | -6/Lower Caves | Activated DRS Beacon 11593 | -6/Lower Caves | Attracted the attention of an 0b10 checkpoint 12701 | -6/Lower Caves | Entered another Lower Caves area 12701 | -6/Lower Caves | Accompanied by 1 ally 13015 | -6/Lower Caves | Build established: Scavenger-Skirmisher 13349 | -6/Lower Caves | Discovered new exit (range 10) 13836 | -6/Lower Caves | Attracted the attention of an 0b10 checkpoint 13883 | -6/Lower Caves | Build established: Skirmisher 14103 | -6/Lower Caves | Encountered a Warlord checkpoint 14356 | -6/Lower Caves | Discovered new exit (range 8) 14491 | -6/Lower Caves | Identified exit to Zion 14494 | -6/Lower Caves | Entered Zion 14591 | -6/Zion | System corruption cleaned by Quarantine Array 14684 | -6/Zion | Found Prototype Device 14684 | -6/Zion | Identified Bomb Factory No. 2 14765 | -6/Zion | Discovered new exit (range 12) 15113 | -6/Zion | Learned location of Armory (-4) 15626 | -6/Zion | Found Prototype Energy Gun 15697 | -6/Zion | Received a hallucinogenic algorithm 15735 | -6/Zion | Given A8's code to call for help 16204 | -6/Zion | Build established: Mutant 16506 | -6/Zion | Turned away by Imprinter 16927 | -6/Zion | Found CR-A16's Pointy Stick 17708 | -6/Zion | Build established: Skirmisher 18216 | -6/Zion | Botcube activated 18238 | -6/Zion | Botcube completed mutation into legged form, armed with 1 gun, 1 cannon. 18619 | -6/Zion | Identified exit to Proximity Caves 18623 | -6/Zion | Entered Proximity Caves 18623 | -5/Proximity Caves | Accompanied by 1 ally 18625 | -5/Proximity Caves | Spotter reported a threat 18626 | -5/Proximity Caves | Spotter reported a threat 18782 | -5/Proximity Caves | Spotted B-75 Beast 18792 | -5/Proximity Caves | Revealed the true nature of CR-A16's Pointy Stick 18796 | -5/Proximity Caves | Destroyed B-75 Beast 18873 | -5/Proximity Caves | Spotter reported a threat 18926 | -5/Proximity Caves | Spotter reported a threat 19135 | -5/Proximity Caves | Spotter reported a threat 19188 | -5/Proximity Caves | Spotter reported a threat 19269 | -5/Proximity Caves | Unaware initiated a cargo recovery operation 19448 | -5/Proximity Caves | Build established: Scavenger-Skirmisher 19595 | -5/Proximity Caves | Discovered new exit (range 8) 19609 | -5/Proximity Caves | Identified exit to Factory 19615 | -5/Proximity Caves | Entered Factory 19615 | -5/Factory | Accompanied by 1 ally 19615 | -5/Factory | Evolved 2 slots: Utility x2 19915 | -5/Factory | Search patrols dispatched 20033 | -5/Factory | Build established: Hacker-Skirmisher 20037 | -5/Factory | Garrison activated, responded to threat 20075 | -5/Factory | Discovered new exit (range 9) 20089 | -5/Factory | Identified exit to Extension 20091 | -5/Factory | Entered Extension 20391 | -5/Extension | Search patrols dispatched 20391 | -5/Extension | Disrupted transfer network 20507 | -5/Extension | Rescued a captive Derelict 20508 | -5/Extension | Rescued a captive Derelict 20537 | -5/Extension | Enhanced Grunt warped into view, answering call for help 20551 | -5/Extension | Enhanced Grunt warped into view, answering call for help 21141 | -5/Extension | Lost 3 allies 21291 | -5/Extension | First assault squad dispatched 21296 | -5/Extension | Rescued A7 21606 | -5/Extension | Spotted B-75 Beast 21614 | -5/Extension | Allies destroyed B-75 Beast 21723 | -5/Extension | Discovered new exit (range 3) 21862 | -5/Extension | Rescued a captive Derelict 21862 | -5/Extension | Rescued a captive Derelict 21916 | -5/Extension | Build established: Scavenger-Skirmisher 22138 | -5/Extension | Lost 3 allies 22144 | -5/Extension | P-70 Sage assimilated allied WQ-ZJM(l) 22570 | -5/Extension | Discovered new exit (range 10) 22573 | -5/Extension | Discovered new exit (range 6) 22606 | -5/Extension | Extracted ID and sensor layout for unrecognized location from A7's data core 22637 | -5/Extension | Lost 4 parts (1p1n1u1w) 22652 | -5/Extension | Identified exit to Cetus 22683 | -5/Extension | Entered Cetus 22683 | -5/Cetus | Accompanied by 2 allies 22714 | -5/Cetus | Spotted Cetus Guard 22714 | -5/Cetus | Spotted Cetus Guard 22716 | -5/Cetus | Spotted Cetus Guard 22717 | -5/Cetus | Spotted Cetus Guard 22745 | -5/Cetus | Destroyed Cetus Guard 22792 | -5/Cetus | Core integrity fell below 50% 22838 | -5/Cetus | Core integrity fell below 20% 22879 | -5/Cetus | Destroyed Cetus Guard 22905 | -5/Cetus | Lost 23 parts (4p5n10u4w) 23234 | -5/Cetus | Build established: Scavenger-Mutant 23433 | -5/Cetus | Security sweep announced 23459 | -5/Cetus | Discovered new exit (range 18) 23480 | -5/Cetus | Destroyed by S-27 Virus with Autogun Last Messages --------------- non-essential units disperse. 23459_ EXIT=FOUND 23463_ C-30 ARC bursts open, deploying its payload. 23463_ H-66 Slayer unfolds itself. 23463_ C-30 ARC bursts open, deploying its payload. 23463_ S-27 Virus unfolds itself. 23463_ Penetrated by Slug. 23463_ Lgt. Angular Momentum Engine destroyed. 23463_ Penetrated by Slug. 23468_ Imp. Trap Scanner destroyed. 23470_ Hvy. Laser destroyed. 23471_ Penetrated by Slug. 23472_ Scrap Suit destroyed. 23472_ Carbon-fiber Leg destroyed. 23474_ Penetrated by Slug. 23474_ Carbon-fiber Leg destroyed. 23477_ Penetrated by Slug. 23477_ Adv. Variable Charge Gun destroyed. Map ----- +----------------------------------------------------+ | ??????????????????????????????????????????????? | | ??????????????????????????????????????????????? | | ??????????????????????????????????????????????? | | ??????????????????????????????????????????????? | | ??????????????????????????????????????????????? | | ??????????????????????????????????????????????? | | ??????????????????????????????????????????????? | | ??????????????????????????????????????????????? | | ??????????????????????????????????????????????? | | ??????????????????????????????????????????????? | | ??????????????????????????????????????????????? | | ??????????????????????????????????????????????? | | ??????????????????????????????????????????????? | | ??????????????????????????????????????????????? | | ??????????????????????????????????????????????? | | ##########????????????????????????????????????? | | """ """""##??????????????????????????????????? | | """""" " #""?????????????????????????????????? | | """"""""""#"######????????????????????????????? | | """ """""#""""""#????????????????????????????? | | "" """""""#" ""#????????????????????????????? | | " """#T ""#??????????????#?????????????? | | """ "#" ""#????????????" #?????????????? | | ############%% ########??????? | | ; s s #???? | | ; @ h < #???? | | ; ss #???? | | #######################??????? | | """"""""#T #????????????????????????????? | | ++############ #######??????????????????????? | | ""# #??????????????????????? | | """# " #??????????????????????? | | ""# """""" " " #??????????????????????? | | """# " " " """ #??????????????????????? | | "### """""" " #??????????????????????? | | """"#" """"""""" #??????????????????????? | | T"""#""""""""""" "#??????????????????????? | | """"#" """"""""""""#??????????????????????? | | "### """"""" "#??????????????????????? | | """"#" ?""""""" #??????????????????????? | | T"""#""?????????? #??????????????????????? | | """"#?????????????? "#??????????????????????? | | " #"###???????????????????????????????????????? | | #""?????????????????????????????????????????? | | ""#"""????????????????????????????????????????? | | ###???????????????????????????????????????????? | | ??????????????????????????????????????????????? | | ??????????????????????????????????????????????? | | ??????????????????????????????????????????????? | | ??????????????????????????????????????????????? | +----------------------------------------------------+ Best States ------------- Heat Dissipation 71 Energy Generation 37 Energy Capacity 500 Matter Stores 300 Matter Capacity 300 Sight Range 18 Robot Scan Range 20 Terrain Scan Range 16 Terrain Scan Density 10 Armor Coverage 450 Core Shielding 30 Evasion (%) 55 Targeting Accuracy 5 Armor Integrity Analysis 30 Recoil Reduction 10 Particle Charging 20 Offensive Hacking 23 Defensive Hacking 12 Item Schematics ----------------- Beamcaster | -6/Zion | Free Robot Schematics ------------------ None Fabricated ------------ Nothing Alien Tech Used ----------------- None Achievements -------------- None Challenges ------------ None Game ------ Seed WardroneTrapMeganuke Manual? 0 Play Time 02:32:46 Cumulative 279.7 hours Start 2024.09.12 @ 22:44:58 End 2024.09.13 @ 01:23:25 Sessions 1 Manual Loads 0 Difficulty Rogue Special Mode None Game No. 207 Rogue 197 Adventurer 0 Explorer 10 Win Type - Total 3 Types 3/0/0/0/0/0/0/0/0 Lore% 72 Gallery% 71 Achievement% 54 Wizard Run 0 Options --------- Layout 2 ASCII 0 Keyboard 0 Movement Arrows Keybinds 1 Fullscreen 1 Font 24/Smallcaps Map View 50x44 Zoom Use 0% Tactical HUD 1 Map Filters NONE Filters NONE Steam 1 RUN: f59bb2e5-b22d-478b-a8cb-cb62374f05f9